Cogmind - Beta 10.2 *** ADVENTURER MODE // 2022.03.06 @ 01:00:17 Player: Departed Result: Destroyed by G-47 Trooper with Particle Gun Performance ------------- Evolutions (0) 0 Regions Visited (1) 200 Robots Destroyed (3) 15 Value Destroyed (91) 91 Prototype IDs (0) 0 Alien Tech Used (0) 0 Bonus (0) 0 TOTAL SCORE: 306 Bonus ------- None Cogmind --------- Core Integrity 0/250 Matter 163/300 Energy 100/100 System Corruption 0% Temperature Cool (9) Movement Core (650) Ox12 Location -10/Materials Parts ------- > --- POWER (1) -------- (None) > --- PROPULSION (2) --- (None) > --- UTILITY (2) ------ Large Storage Unit Large Storage Unit > --- WEAPON (2) ------- Maul Maul > --- INVENTORY (16) --- Small Storage Unit Medium Storage Unit Assault Rifle Assault Rifle Light Assault Rifle Peak State ------------ > --- POWER ------------ Ion Engine > --- PROPULSION ------- Compact Wheel Compact Wheel > --- UTILITY ---------- Large Storage Unit Large Storage Unit > --- WEAPON ----------- Datajack Maul > --- INVENTORY -------- Small Storage Unit Medium Storage Unit Assault Rifle Assault Rifle Light Assault Rifle [Rating: 8] Favorites ----------- Power Ion Engine Engine Ion Engine Propulsion Compact Wheel Wheel Compact Wheel Utility Large Storage Unit Storage Large Storage Unit Weapon Assault Rifle Ballistic Gun Assault Rifle Impact Weapon Maul Special Melee Weapon Datajack Build | -11 -10 ------- Run | Scr Mat Slots Evolved . | . . Power . | . . Propulsion . | . . Utility . | . . Weapon . | . . Parts Attached 13 | 7 6 Power 1 | 1 . Engine 1 | 1 . Core . | . . Reactor . | . . Propulsion 2 | 2 . Treads . | . . Leg . | . . Wheel 2 | 2 . Hover . | . . Flight . | . . Utility 4 | 1 3 Device . | . . Storage 4 | 1 3 Processor . | . . Hackware . | . . Protection . | . . Artifact . | . . Weapon 6 | 3 3 Energy Gun . | . . Energy Cannon . | . . Ballistic Gun 3 | 3 . Ballistic Cannon . | . . Launcher . | . . Special Weapon . | . . Impact Weapon 2 | . 2 Slashing Weapon . | . . Piercing Weapon . | . . Special Melee Weapon 1 | . 1 Unidentified Prototypes . | . . Parts Lost 4 | . 4 Power 1 | . 1 Propulsion 2 | . 2 Utility . | . . Weapon 1 | . 1 Highest Loss Streak 2 | . 2 Average Slot Usage (%) 87 | . 87 Engine 13 | . 13 Wheel 24 | . 24 Storage 21 | . 21 Ballistic Gun 10 | . 10 Impact Weapon 6 | . 6 Special Melee Weapon 9 | . 9 Naked Turns . | . . Heaviest Build 43 | 13 43 Greatest Support 32 | 32 32 Greatest Overweight (x) 12 | . 12 Average Overweight (x) . | . . Largest Inventory Capacity 16 | 6 16 Average Capacity 10 | 5 11 Most Carried 5 | 1 5 Average Carried 2 | . 3 Final Capacity 16 | 6 16 Final Carried 5 | 1 5 Class Distribution -------------------- 100% | Mutant Dominant Class ---------------- Mutant | -10/Materials Resources | -11 -10 ----------- Run | Scr Mat Matter Collected 173 | 156 17 Remotely . | . . Salvage Created 120 | . 120 Parts 7 | . 7 Haulers Intercepted . | . . Recyclers Shooed . | . . Parts Field Recycled . | . . Retrieved Matter . | . . Parts Self-Destructed . | . . Prevented . | . . Kills | -11 -10 ------- Run | Scr Mat Combat Hostiles Destroyed 3 | . 3 Melee 3 | . 3 Classes Destroyed 2 | . 2 Swarmer 1 | . 1 Grunt 2 | . 2 Best Kill Streak 3 | . 3 Combat Bots Only 3 | . 3 Max Kills in Single Turn 1 | . 1 Gunslinging . | . . Exploded . | . . Melee 1 | . 1 Uniques/NPCs Destroyed . | . . Combat | -11 -10 -------- Run | Scr Mat Damage Taken 572 | . 572 Core 254 | . 254 Absorbed by Shields . | . . Core Remaining (%) 100 | 100 . Volleys Fired . | . . Largest . | . . Hottest . | . . Shots Fired . | . . Gun . | . . Cannon . | . . Launcher . | . . Special . | . . Kinetic . | . . Thermal . | . . Explosive . | . . Electromagnetic . | . . Robot Hit Streak . | . . Robot Miss Streak . | . . Penetration Max . | . . Secondary Targets . | . . Shots Hit Robots 14 | . 14 Core Hits 4 | . 4 Critical Hits . | . . Critical Kills . | . . Critical Parts Destroyed . | . . Melee Attacks 16 | . 16 Impact 16 | . 16 Slashing . | . . Piercing . | . . Sneak Attacks . | . . Combat Hostiles . | . . Follow-up Attacks 3 | . 3 Damage Inflicted 319 | . 319 Guns . | . . Cannons . | . . Explosions . | . . Melee 319 | . 319 Ramming . | . . Kinetic . | . . Thermal . | . . Explosive . | . . Electromagnetic . | . . Impact 319 | . 319 Slashing . | . . Piercing . | . . Highest Corruption . | . . Average Corruption . | . . Corruption Purged . | . . Overload Shots . | . . Overflow Damage . | . . Projectiles . | . . Explosions . | . . Melee . | . . Knockbacks 2 | . 2 Impact 2 | . 2 Kinetic . | . . Secondary . | . . Self-Inflicted Damage . | . . Shots . | . . Rammed . | . . Targets Rammed . | . . Kicked . | . . Crushed . | . . Highest Temperature . | . . Average Temperature . | . . Received Heat Transfer 279 | . 279 Siege Activations . | . . Robots Corrupted . | . . Combat Hostiles . | . . Parts Fried . | . . Impact Corruptions . | . . Robots Melted . | . . Combat Hostiles . | . . Parts Melted . | . . Heat Transferred . | . . Parts Sabotaged . | . . Parts Stolen . | . . Parts Stripped . | . . Power Chain Reactions . | . . Missiles Intercepted . | . . Alert | -11 -10 ------- Run | Scr Mat Peak Influence 135 | . 135 Initial . | . . Average 11 | . 13 Maximum Alert Level . | . . Low Security (%) 100 | 100 100 Level 1 . | . . Level 2 . | . . Level 3 . | . . Level 4 . | . . Level 5 . | . . High Security . | . . Max Security . | . . Squads Dispatched . | . . Investigation . | . . Extermination . | . . Reinforcement . | . . Assault . | . . Garrison . | . . Intercept . | . . Construction Impeded . | . . Haulers Reinforced . | . . Stealth | -11 -10 --------- Run | Scr Mat Distress Signals 1 | . 1 Communications Jammed . | . . Distress Signals . | . . Times Spotted 11 | . 11 Peak Tracking Total 8 | . 8 Tactical Retreats 2 | . 2 Traps | -11 -10 ------- Run | Scr Mat Traps Triggered . | . . Indirectly . | . . Trap Hack Attempts . | . . Triggered . | . . Disarmed . | . . Reprogrammed . | . . Reused . | . . Traps Extracted . | . . Installed . | . . Triggered . | . . Machines | -11 -10 ---------- Run | Scr Mat Machines Disabled . | . . Max in Single Turn . | . . Machines Sabotaged . | . . Garrisons Compromised . | . . Overloaded Fab Kills . | . . Fab Network Shutdowns . | . . Hacking | -11 -10 --------- Run | Scr Mat Machines Accessed . | . . Terminals . | . . Fabricators . | . . Repair Stations . | . . Recycling Units . | . . Scanalyzers . | . . Garrison Access . | . . Total Hacks . | . . Successful . | . . Failed . | . . Catastrophic . | . . Database Lockouts . | . . Manual . | . . Terminals . | . . Fabricators . | . . Repair Stations . | . . Recycling Units . | . . Scanalyzers . | . . Garrison Access . | . . Terminal Hacks . | . . Fabricator Hacks . | . . Repair Station Hacks . | . . Recycling Unit Hacks . | . . Scanalyzer . | . . Garrison Access Hacks . | . . Unauthorized Hacks . | . . Terminals . | . . Fabricators . | . . Repair Stations . | . . Recycling Units . | . . Scanalyzers . | . . Garrison Access . | . . Data Cores Recovered . | . . Used . | . . Hacking Detections . | . . Full Trace Events . | . . Feedback Events . | . . Feedback Blocked . | . . Robot Schematics Acquired . | . . Robots Built . | . . Matter . | . . Time . | . . Total Robot Build Rating . | . . Part Schematics Acquired . | . . Parts Built . | . . Matter . | . . Time . | . . Total Part Build Rating . | . . Parts Repaired . | . . Time . | . . Parts Recycled . | . . Recycled Matter . | . . Retrieved Matter . | . . Retrieved Components . | . . Parts Scanalyzed . | . . Part Schematics Acquired . | . . Parts Damaged . | . . Bothacking | -11 -10 ------------ Run | Scr Mat Used RIF Installer . | . . Robots Hacked . | . . Non-combat . | . . Combat . | . . Robot Hacks Applied . | . . Relay Couplers Released . | . . Robots Rewired . | . . Allies Hacked . | . . Hacks Repelled . | . . Allies | -11 -10 -------- Run | Scr Mat Total Allies . | . . Largest Group . | . . Highest-Rated Group . | . . Highest-Rated Ally . | . . Total Orders . | . . Ally Attacks . | . . Total Damage . | . . Kills . | . . Allies Corrupted . | . . Allies Melted . | . . Intel | -11 -10 ------- Run | Scr Mat Robot Analysis Total . | . . Derelict Logs Recovered . | . . Drone Launches . | . . Drone Recoveries . | . . Exploration | -11 -10 ------------- Run | Scr Mat Turns Passed 294 | 43 251 Spaces Moved 213 | 34 179 Core 2 | 1 1 Treads . | . . Legs . | . . Wheels 211 | 33 178 Hover . | . . Flight . | . . Fastest Speed 50 | 50 100 Average Speed 105 | 98 107 Slowest Speed 650 | 100 650 Overloaded Moves . | . . Propulsion Burnouts . | . . Robots Hopped . | . . Cave-ins Triggered . | . . Exploration Rate (%) 15 | 4 26 Regions Visited 1 Branch Regions . Pre-discovered Areas . | . . Known Exits Taken . | . . Unknown Exits Taken 1 | 1 . Scrap Searched . | . . Spaces Dug . | . . Terrain Destroyed . | . . Melee . | . . Projectile . | . . AOE . | . . Terrain Rammed . | . . Walls Destroyed . | . . Machines Disabled . | . . Actions | -11 -10 --------- Run | Scr Mat Total 251 | 40 211 Wait 12 | . 12 Move 212 | 33 179 Hop . | . . Pick Up 2 | . 2 Fast Attach 8 | 6 2 Attach . | . . Detach . | . . Swap 5 | 1 4 Drop . | . . Fire . | . . Melee 12 | . 12 Ram . | . . Kick . | . . Crush . | . . Escape Stasis . | . . Rewire . | . . Trap . | . . Miscellaneous . | . . Route ------- -11/Scrapyard -10/Materials (discovered 1 exit: [*Mat]) History --------- Turn | Location | Event 2 | -11/Scrapyard | Met Revision 17 26 | -11/Scrapyard | Discovered new exit (range 16) 44 | -11/Scrapyard | Entered Materials 191 | -10/Materials | Discovered new exit (range 15) 270 | -10/Materials | Core integrity fell below 50% 287 | -10/Materials | Core integrity fell below 20% 295 | -10/Materials | Destroyed by G-47 Trooper with Particle Gun Last Messages --------------- 00241_ W-16 Scout distress signal alerts nearby ally. 00245_ G-47 Trooper knocked back. 00246_ Com. Wheel destroyed. 00249_ Datajack destroyed. 00261_ Acquired Maul. 00267_ S-10 Pest destroyed. 00270_ Maul follow-up attack on G-47 Trooper. 00276_ G-47 Trooper knocked back. 00280_ Acquired 17 matter. 00280_ K-01 Serf collects debris. 00281_ Maul follow-up attack on G-47 Trooper. 00283_ K-01 Serf collects debris. 00284_ Com. Wheel destroyed. 00284_ Maul follow-up attack on G-47 Trooper. 00284_ G-47 Trooper destroyed. 00286_ K-01 Serf collects debris. 00288_ G-34 Mercenary destroyed. 00288_ Ion Engine destroyed. 00290_ K-01 Serf collects debris. [Achievement: Back For More] Map ----- +----------------------------------------------------+ | | | | | | | ??????????????????????????????????? | | ??????######??????????????????????? | | ?????##! ##????????########?????? | | ?????#! !#????????# #?????? | | ?????#! !#????????# #?????? | | ?????## #????????# """ #?????? | | ??????# #????????# """ #?????? | | ??????# #????????# """ #?????? | | ??######## #????????# #?????? | | ??# # #############+######+## | | ??# + | | ??# """# | | ??# """# | | ??# ""?# ################# | | ??# ?# #???????????????# | | ???####??# +???????????????# | | ?????????# #???????????????# | | ?????##### s#???????????????# | | ?????#!! #???????????????# | | ?????#!! #???????????????# ### | | ?????#!!s g #???????????????### #?? | | ?????#!! =* #?????????????????# #?? | | ?????#/ =@k#?????????????????# #?? | | ?????#/ [*%=#?????????????????# #?? | | ?????##### #?????????????????#/#?? | | ?????????# g#????????????????? ?? | | ?????????# #??????????????????"??? | | ?????????# #?????????????????????? | | ?????????# #?????????????????????? | | ?????????# #?????????????????????? | | ?????????# #?????????????????????? | | ????????## #######+######+#??????? | | ????????# ?????? | | ????????# < ^ ?????? | | ????????# ^ ?????? | | ????????####u#############/???????? | | ??????????? ????????????????????? | | ??????????? ????????????????????? | | ??????????? ???????????????????? | | ??????????? ???????????????????? | | ??????????? ??????????????????? | | ??????????? ??????????????????? | | ??????????#######?????????????????? | | ??????????????????????????????????? | | ??????????????????????????????????? | | ??????????????????????????????????? | | ??????????????????????????????????? | +----------------------------------------------------+ Best States ------------- Heat Dissipation 25 Energy Generation 10 Energy Capacity 250 Matter Stores 186 Matter Capacity 300 Sight Range 16 Terrain Scan Density 10 Resistance: KI 20 Resistance: TH 20 Resistance: EX 20 Resistance: EM 20 Resistance: I 20 Resistance: S 20 Resistance: P 20 Evasion (%) 40 Offensive Hacking 10 Item Schematics ----------------- None Robot Schematics ------------------ None Fabricated ------------ Nothing Alien Tech Used ----------------- None Achievements -------------- Back For More Challenges ------------ None Game ------ Seed SurgePointCompressor Manual? 0 Play Time 00:05:25 Cumulative 39.0 hours Start 2022.03.06 @ 00:57:00 End 2022.03.06 @ 01:00:17 Sessions 1 Manual Loads 0 Difficulty Adventurer Special Mode None Game No. 51 Rogue 0 Adventurer 35 Explorer 16 Win Type - Total 2 Types 2/0/0/0/0/0/0/0/0 Lore% 24 Gallery% 49 Achievement% 36 Wizard Run 0 Options --------- ASCII 0 Keyboard 1 Movement Arrows Keybinds 0 Fullscreen 1 Font 18/SmallcapsGlow Map View 76x50 Tactical HUD 1 Map Filters NONE Filters NONE Steam 1 RUN: a81b4ee1-7627-4942-aff5-e8f4dae891e2